[Event "The Kvibergspelen 2024"]
[Site "Kviberg Park Hotel & Conference, Krutvagen 2, Gothenburg, Sweden"]
[Date "2024.09.08"]
[Round "8.2"]
[White "Sorensen, Hampus"]
[Black "Arman, Deniz"]
[Result "1-0"]
[TimeControl "15 minutes + 5 seconds per move from move one (Round 1 - 4) / 90 minutes + 30 seconds per move from move one (Round 5 - 8)"]
[WhiteTitle "IM"]
[BlackTitle "FM"]
[WhiteFideId "8703884"]
[BlackFideId "6302106"]
[WhiteElo "2420"]
[BlackElo "2348"]

1. d4 {[%clk 01:30:58]} {[%emt 00:00:02]} Nf6 {[%clk 01:24:14]} {[%emt
00:06:40]} 2. c4 {[%clk 01:31:22]} {[%emt 00:00:13]} c5 {[%clk 01:24:36]}
{[%emt 00:00:07]} 3. d5 {[%clk 01:31:34]} {[%emt 00:00:18]} b5 {[%clk
01:24:58]} {[%emt 00:00:08]} 4. cxb5 {[%clk 01:31:43]} {[%emt 00:00:22]} a6
{[%clk 01:25:23]} {[%emt 00:00:05]} 5. e3 {[%clk 01:31:40]} {[%emt 00:00:33]}
g6 {[%clk 01:25:45]} {[%emt 00:00:07]} 6. Nc3 {[%clk 01:30:59]} {[%emt
00:01:11]} Bg7 {[%clk 01:22:58]} {[%emt 00:03:18]} 7. Nf3 {[%clk 01:30:41]}
{[%emt 00:00:47]} O-O {[%clk 01:21:40]} {[%emt 00:01:48]} 8. a4 {[%clk
01:28:44]} {[%emt 00:02:28]} Bb7 {[%clk 01:21:15]} {[%emt 00:00:55]} 9. Be2
{[%clk 01:20:36]} {[%emt 00:08:38]} axb5 {[%clk 01:15:14]} {[%emt 00:06:31]} 10.
Bxb5 {[%clk 01:20:51]} {[%emt 00:00:15]} Na6 {[%clk 01:14:02]} {[%emt
00:01:41]} 11. O-O {[%clk 01:20:17]} {[%emt 00:01:03]} Nc7 {[%clk 01:12:30]}
{[%emt 00:02:03]} 12. Bc4 {[%clk 01:20:25]} {[%emt 00:00:23]} Ba6 {[%clk
01:12:34]} {[%emt 00:00:25]} 13. Nd2 {[%clk 01:17:03]} {[%emt 00:03:52]} Qc8
{[%clk 00:54:38]} {[%emt 00:18:25]} 14. Ra3 {[%clk 01:11:20]} {[%emt 00:06:15]}
Bxc4 {[%clk 00:53:37]} {[%emt 00:01:31]} 15. Nxc4 {[%clk 01:11:38]} {[%emt
00:00:11]} Qa6 {[%clk 00:53:57]} {[%emt 00:00:10]} 16. b3 {[%clk 01:08:41]}
{[%emt 00:03:27]} d6 {[%clk 00:50:45]} {[%emt 00:03:43]} 17. e4 {[%clk
01:04:25]} {[%emt 00:04:45]} Nd7 {[%clk 00:45:17]} {[%emt 00:05:58]} 18. Nb1
{[%clk 01:03:42]} {[%emt 00:01:13]} f5 {[%clk 00:40:46]} {[%emt 00:05:01]} 19.
Nbd2 {[%clk 00:53:52]} {[%emt 00:10:20]} fxe4 {[%clk 00:38:29]} {[%emt
00:02:47]} 20. Nxe4 {[%clk 00:54:10]} {[%emt 00:00:12]} Qb7 {[%clk 00:38:47]}
{[%emt 00:00:13]} 21. Qg4 {[%clk 00:48:06]} {[%emt 00:06:34]} Rf5 {[%clk
00:31:39]} {[%emt 00:07:37]} 22. Ne3 {[%clk 00:44:38]} {[%emt 00:03:58]} Raf8
{[%clk 00:25:42]} {[%emt 00:06:27]} 23. Nxf5 {[%clk 00:42:01]} {[%emt
00:03:08]} Rxf5 {[%clk 00:21:34]} {[%emt 00:04:37]} 24. Ng3 {[%clk 00:37:51]}
{[%emt 00:04:40]} Ne5 {[%clk 00:19:09]} {[%emt 00:02:55]} 25. Qe4 {[%clk
00:36:21]} {[%emt 00:02:00]} Rf7 {[%clk 00:18:14]} {[%emt 00:01:26]} 26. Rd1
{[%clk 00:35:39]} {[%emt 00:01:11]} Nd7 {[%clk 00:18:39]} {[%emt 00:00:06]} 27.
Ne2 {[%clk 00:27:23]} {[%emt 00:08:45]} Nf6 {[%clk 00:16:59]} {[%emt 00:02:10]}
28. Qc4 {[%clk 00:27:17]} {[%emt 00:00:37]} Nfxd5 {[%clk 00:16:50]} {[%emt
00:00:38]} 29. a5 {[%clk 00:26:52]} {[%emt 00:00:56]} Nb4 {[%clk 00:16:50]}
{[%emt 00:00:29]} 30. Bd2 {[%clk 00:24:43]} {[%emt 00:02:39]} Nba6 {[%clk
00:17:10]} {[%emt 00:00:10]} 31. h4 {[%clk 00:19:23]} {[%emt 00:05:50]} d5
{[%clk 00:16:47]} {[%emt 00:00:54]} 32. Qc2 {[%clk 00:18:01]} {[%emt 00:01:51]}
e5 {[%clk 00:16:53]} {[%emt 00:00:24]} 33. f3 {[%clk 00:12:54]} {[%emt
00:05:37]} Qb5 {[%clk 00:16:03]} {[%emt 00:01:21]} 34. Be1 {[%clk 00:11:49]}
{[%emt 00:01:35]} Bh6 {[%clk 00:10:29]} {[%emt 00:06:04]} 35. Kh2 {[%clk
00:09:26]} {[%emt 00:02:52]} Qc6 {[%clk 00:09:40]} {[%emt 00:01:20]} 36. Ra4
{[%clk 00:09:23]} {[%emt 00:00:34]} d4 {[%clk 00:08:46]} {[%emt 00:01:24]} 37.
Bg3 {[%clk 00:08:47]} {[%emt 00:01:05]} Qe6 {[%clk 00:08:09]} {[%emt 00:01:06]}
38. Re1 {[%clk 00:07:19]} {[%emt 00:01:59]} Be3 {[%clk 00:07:05]} {[%emt
00:01:35]} 39. Rc4 {[%clk 00:06:35]} {[%emt 00:01:14]} Qe7 {[%clk 00:06:45]}
{[%emt 00:00:50]} 40. Qe4 {[%clk 00:06:32]} {[%emt 00:00:32]} Rf5 {[%clk
00:07:11]} {[%emt 00:00:04]} 41. Kh1 {[%clk 00:04:51]} {[%emt 00:02:12]} Bd2
{[%clk 00:03:13]} {[%emt 00:04:27]} 42. Rd1 {[%clk 00:04:59]} {[%emt 00:00:22]}
Bxa5 {[%clk 00:02:42]} {[%emt 00:01:01]} 43. Ra1 {[%clk 00:03:36]} {[%emt
00:01:53]} Bb4 {[%clk 00:02:30]} {[%emt 00:00:42]} 44. Nf4 {[%clk 00:02:29]}
{[%emt 00:01:36]} Rxf4 {[%clk 00:02:04]} {[%emt 00:00:56]} 45. Bxf4 {[%clk
00:02:56]} {[%emt 00:00:03]} Qxh4+ {[%clk 00:00:47]} {[%emt 00:01:49]} 46. Bh2
{[%clk 00:03:24]} Qxe4 {[%clk 00:00:40]} {[%emt 00:00:37]} 47. fxe4 {[%clk
00:03:53]} {[%emt 00:00:02]} Bc3 {[%clk 00:00:34]} {[%emt 00:00:35]} 48. Rf1
{[%clk 00:02:48]} {[%emt 00:01:35]} Ne6 {[%emt 00:00:34]} 49. Bxe5 {[%clk
00:02:34]} {[%emt 00:00:42]} Nb4 {[%clk 00:00:31]} {[%emt 00:00:31]} 50. Rf6
{[%clk 00:02:48]} {[%emt 00:00:16]} 1-0

[Event "The Kvibergspelen 2024"]
[Site "Kviberg Park Hotel & Conference, Krutvagen 2, Gothenburg, Sweden"]
[Date "2024.09.08"]
[Round "8.3"]
[White "Lindberg, Bengt"]
[Black "Ostlund, Joar"]
[Result "1-0"]
[TimeControl "15 minutes + 5 seconds per move from move one (Round 1 - 4) / 90 minutes + 30 seconds per move from move one (Round 5 - 8)"]
[WhiteTitle "IM"]
[BlackTitle "FM"]
[WhiteFideId "1700359"]
[BlackFideId "1735020"]
[WhiteElo "2337"]
[BlackElo "2335"]

1. e4 {[%clk 01:30:47]} {[%emt 00:00:12]} e5 {[%clk 01:30:38]} {[%emt
00:00:23]} 2. Nf3 {[%clk 01:31:07]} {[%emt 00:00:09]} Nc6 {[%clk 01:30:59]}
{[%emt 00:00:09]} 3. Bb5 {[%clk 01:31:09]} {[%emt 00:00:28]} g6 {[%clk
01:29:41]} {[%emt 00:01:49]} 4. c3 {[%clk 01:29:41]} {[%emt 00:01:58]} Bg7
{[%clk 01:30:02]} {[%emt 00:00:09]} 5. d4 {[%clk 01:29:26]} {[%emt 00:00:43]}
exd4 {[%clk 01:30:23]} {[%emt 00:00:10]} 6. cxd4 {[%clk 01:29:49]} {[%emt
00:00:08]} a6 {[%clk 01:30:35]} {[%emt 00:00:18]} 7. Ba4 {[%clk 01:29:58]}
{[%emt 00:00:20]} b5 {[%clk 01:29:43]} {[%emt 00:01:23]} 8. Bb3 {[%clk
01:29:59]} {[%emt 00:00:28]} Nge7 {[%clk 01:29:18]} {[%emt 00:00:56]} 9. O-O
{[%clk 01:29:44]} {[%emt 00:00:44]} O-O {[%clk 01:29:22]} {[%emt 00:00:27]} 10.
Nc3 {[%clk 01:29:34]} {[%emt 00:00:40]} Na5 {[%clk 01:25:36]} {[%emt 00:04:16]}
11. Bc2 {[%clk 01:29:57]} {[%emt 00:00:07]} d6 {[%clk 01:25:25]} {[%emt
00:00:41]} 12. h3 {[%clk 01:25:54]} {[%emt 00:04:33]} c5 {[%clk 01:24:39]}
{[%emt 00:01:16]} 13. Re1 {[%clk 01:12:03]} {[%emt 00:14:20]} cxd4 {[%clk
01:16:08]} {[%emt 00:09:01]} 14. Nxd4 {[%clk 01:11:59]} {[%emt 00:00:34]} Bb7
{[%clk 01:15:12]} {[%emt 00:01:27]} 15. Bg5 {[%clk 01:09:42]} {[%emt 00:02:46]}
h6 {[%clk 01:12:41]} {[%emt 00:03:02]} 16. Bh4 {[%clk 01:09:45]} {[%emt
00:00:28]} Rc8 {[%clk 01:07:23]} {[%emt 00:05:47]} 17. Bb3 {[%clk 00:54:31]}
{[%emt 00:15:44]} Qd7 {[%clk 01:00:51]} {[%emt 00:07:02]} 18. Re2 {[%clk
00:47:27]} {[%emt 00:07:33]} Nc4 {[%clk 00:56:39]} {[%emt 00:04:43]} 19. Qd3
{[%clk 00:41:26]} {[%emt 00:06:31]} Rc7 {[%clk 00:43:18]} {[%emt 00:13:50]} 20.
Rd1 {[%clk 00:40:17]} {[%emt 00:01:39]} Re8 {[%clk 00:34:29]} {[%emt 00:09:19]}
21. Bxc4 {[%clk 00:37:21]} {[%emt 00:03:27]} Rxc4 {[%clk 00:32:01]} {[%emt
00:02:58]} 22. Nf3 {[%clk 00:35:49]} {[%emt 00:02:02]} Nc8 {[%clk 00:30:01]}
{[%emt 00:02:30]} 23. Nd5 {[%clk 00:32:45]} {[%emt 00:03:33]} Bxd5 {[%clk
00:25:25]} {[%emt 00:05:06]} 24. Qxd5 {[%clk 00:27:37]} {[%emt 00:05:38]} Qe6
{[%clk 00:24:22]} {[%emt 00:01:34]} 25. Qb7 {[%clk 00:27:17]} {[%emt 00:00:50]}
Rxe4 {[%clk 00:17:43]} {[%emt 00:07:09]} 26. Rxe4 {[%clk 00:27:41]} {[%emt
00:00:06]} Qxe4 {[%clk 00:18:08]} {[%emt 00:00:05]} 27. Qxa6 {[%clk 00:28:04]}
{[%emt 00:00:07]} Qc2 {[%clk 00:14:44]} {[%emt 00:03:53]} 28. Rd2 {[%clk
00:28:17]} {[%emt 00:00:18]} Qc5 {[%clk 00:11:10]} {[%emt 00:04:04]} 29. a4
{[%clk 00:26:11]} {[%emt 00:02:36]} bxa4 {[%clk 00:07:49]} {[%emt 00:03:52]} 30.
Qxa4 {[%clk 00:26:33]} {[%emt 00:00:07]} Rf8 {[%clk 00:08:00]} {[%emt
00:00:18]} 31. b4 {[%clk 00:22:19]} {[%emt 00:04:44]} Qc4 {[%clk 00:06:08]}
{[%emt 00:02:23]} 32. Rc2 {[%clk 00:18:40]} {[%emt 00:04:08]} Qd3 {[%clk
00:06:29]} {[%emt 00:00:10]} 33. Qa2 {[%clk 00:17:51]} {[%emt 00:01:19]} Nb6
{[%clk 00:05:20]} {[%emt 00:01:39]} 34. Rd2 {[%clk 00:15:35]} {[%emt 00:02:44]}
Qc3 {[%clk 00:01:31]} {[%emt 00:04:22]} 35. Rxd6 {[%clk 00:14:16]} {[%emt
00:01:48]} Ra8 {[%clk 00:01:43]} {[%emt 00:00:18]} 36. Qd2 {[%clk 00:12:55]}
{[%emt 00:01:50]} Qa1+ {[%clk 00:00:34]} {[%emt 00:01:40]} 37. Kh2 {[%clk
00:11:57]} {[%emt 00:01:28]} Nc4 {[%clk 00:00:37]} {[%emt 00:00:27]} 38. Rd8+
{[%clk 00:11:46]} {[%emt 00:00:40]} Kh7 {[%clk 00:00:54]} {[%emt 00:00:14]} 39.
Qd5 {[%clk 00:11:33]} {[%emt 00:00:43]} Rxd8 {[%clk 00:00:58]} {[%emt
00:00:26]} 40. Bxd8 {[%clk 00:11:43]} {[%emt 00:00:19]} Ne5 {[%clk 00:00:39]}
{[%emt 00:00:49]} 41. Nxe5 {[%clk 00:11:58]} {[%emt 00:00:15]} Bxe5+ {[%clk
00:01:03]} {[%emt 00:00:07]} 42. g3 {[%clk 00:12:24]} {[%emt 00:00:04]} Kg7
{[%clk 00:00:56]} {[%emt 00:00:37]} 43. Bb6 {[%clk 00:11:37]} {[%emt 00:01:15]}
h5 {[%clk 00:00:33]} {[%emt 00:00:56]} 44. Kg2 {[%clk 00:11:02]} {[%emt
00:01:03]} Qb2 {[%clk 00:00:31]} {[%emt 00:00:33]} 45. b5 {[%clk 00:10:57]}
{[%emt 00:00:35]} h4 {[%clk 00:00:41]} {[%emt 00:00:20]} 46. g4 {[%clk
00:11:20]} {[%emt 00:00:06]} Qe2 {[%clk 00:00:33]} {[%emt 00:00:39]} 47. Be3
{[%clk 00:11:13]} {[%emt 00:00:37]} f6 {[%clk 00:00:31]} {[%emt 00:00:32]} 48.
b6 {[%clk 00:10:25]} {[%emt 00:01:18]} Qb2 {[%clk 00:00:34]} {[%emt 00:00:27]}
49. b7 {[%clk 00:09:48]} {[%emt 00:01:07]} Qb1 {[%clk 00:00:33]} {[%emt
00:00:32]} 50. g5 {[%clk 00:06:26]} {[%emt 00:03:51]} Qb2 {[%clk 00:01:01]}
{[%emt 00:00:02]} 51. gxf6+ {[%clk 00:06:40]} {[%emt 00:00:16]} Kxf6 {[%clk
00:01:21]} {[%emt 00:00:11]} 52. Ba7 {[%clk 00:05:02]} {[%emt 00:02:08]} Qc1
{[%clk 00:00:56]} {[%emt 00:00:54]} 53. Qd8+ {[%clk 00:04:04]} {[%emt
00:01:26]} Kf5 {[%clk 00:00:43]} {[%emt 00:00:45]} 54. Qc8+ {[%clk 00:04:21]}
{[%emt 00:00:13]} 1-0

[Event "The Kvibergspelen 2024"]
[Site "Kviberg Park Hotel & Conference, Krutvagen 2, Gothenburg, Sweden"]
[Date "2024.09.08"]
[Round "8.4"]
[White "Frank, Anton"]
[Black "Sjoholm, Emil"]
[Result "1-0"]
[TimeControl "15 minutes + 5 seconds per move from move one (Round 1 - 4) / 90 minutes + 30 seconds per move from move one (Round 5 - 8)"]
[WhiteFideId "1752383"]
[BlackFideId "1720449"]
[WhiteElo "2142"]
[BlackElo "2092"]

1. d4 {[%clk 01:30:36]} {[%emt 00:00:23]} Nf6 {[%clk 01:30:43]} {[%emt
00:00:17]} 2. c4 {[%clk 01:30:57]} {[%emt 00:00:10]} e6 {[%clk 01:30:50]}
{[%emt 00:00:23]} 3. Nf3 {[%clk 01:31:20]} {[%emt 00:00:07]} c5 {[%clk
01:31:02]} {[%emt 00:00:18]} 4. d5 {[%clk 01:31:42]} {[%emt 00:00:08]} exd5
{[%clk 01:31:18]} {[%emt 00:00:14]} 5. cxd5 {[%clk 01:32:06]} {[%emt 00:00:06]}
d6 {[%clk 01:31:44]} {[%emt 00:00:04]} 6. Nc3 {[%clk 01:32:29]} {[%emt
00:00:07]} g6 {[%clk 01:31:59]} {[%emt 00:00:15]} 7. h3 {[%clk 01:32:37]}
{[%emt 00:00:22]} Bg7 {[%clk 01:32:21]} {[%emt 00:00:09]} 8. Bf4 {[%clk
01:33:01]} {[%emt 00:00:05]} O-O {[%clk 01:32:35]} {[%emt 00:00:15]} 9. e3
{[%clk 01:33:26]} {[%emt 00:00:06]} Ne8 {[%clk 01:31:11]} {[%emt 00:01:54]} 10.
e4 {[%clk 01:33:45]} {[%emt 00:00:11]} Nd7 {[%clk 01:29:41]} {[%emt 00:01:59]}
11. Qd2 {[%clk 01:33:00]} {[%emt 00:01:16]} a6 {[%clk 01:29:49]} {[%emt
00:00:23]} 12. a4 {[%clk 01:33:06]} {[%emt 00:00:23]} Nef6 {[%clk 01:24:25]}
{[%emt 00:05:55]} 13. Bd3 {[%clk 01:26:43]} {[%emt 00:06:52]} Re8 {[%clk
01:23:02]} {[%emt 00:01:53]} 14. O-O {[%clk 01:26:22]} {[%emt 00:00:50]} Qc7
{[%clk 01:21:51]} {[%emt 00:01:42]} 15. Qc2 {[%clk 01:07:20]} {[%emt 00:19:32]}
Rb8 {[%clk 01:13:25]} {[%emt 00:08:56]} 16. a5 {[%clk 01:05:18]} {[%emt
00:02:31]} c4 {[%clk 01:10:54]} {[%emt 00:03:03]} 17. Be2 {[%clk 01:04:06]}
{[%emt 00:01:41]} b5 {[%clk 01:09:38]} {[%emt 00:01:46]} 18. axb6 {[%clk
01:03:33]} {[%emt 00:01:04]} Rxb6 {[%clk 01:09:22]} {[%emt 00:00:45]} 19. Nd2
{[%clk 00:58:43]} {[%emt 00:05:19]} Rb4 {[%clk 01:02:17]} {[%emt 00:07:35]} 20.
Ra4 {[%clk 00:53:44]} {[%emt 00:05:29]} Rxa4 {[%clk 01:01:46]} {[%emt
00:01:03]} 21. Nxa4 {[%clk 00:51:47]} {[%emt 00:02:26]} Nb6 {[%clk 00:57:03]}
{[%emt 00:05:13]} 22. Nxb6 {[%clk 00:51:07]} {[%emt 00:01:10]} Qxb6 {[%clk
00:57:31]} {[%emt 00:00:03]} 23. Nxc4 {[%clk 00:49:57]} {[%emt 00:01:39]} Qc5
{[%clk 00:52:35]} {[%emt 00:05:26]} 24. b4 {[%clk 00:47:52]} {[%emt 00:02:35]}
Qxb4 {[%clk 00:51:20]} {[%emt 00:01:44]} 25. Nxd6 {[%clk 00:47:30]} {[%emt
00:00:52]} Nxd5 {[%clk 00:50:05]} {[%emt 00:01:47]} 26. exd5 {[%clk 00:44:18]}
{[%emt 00:03:41]} Qxf4 {[%clk 00:48:28]} {[%emt 00:02:07]} 27. Nxe8 {[%clk
00:44:12]} {[%emt 00:00:36]} Bxh3 {[%clk 00:48:16]} {[%emt 00:00:42]} 28. Nxg7
{[%clk 00:42:31]} {[%emt 00:02:10]} Bxg2 {[%clk 00:48:31]} {[%emt 00:00:16]} 29.
Qc8+ {[%clk 00:42:26]} {[%emt 00:00:35]} Kxg7 {[%clk 00:48:51]} {[%emt
00:00:10]} 30. Kxg2 {[%clk 00:42:43]} {[%emt 00:00:12]} 1-0

[Event "The Kvibergspelen 2024"]
[Site "Kviberg Park Hotel & Conference, Krutvagen 2, Gothenburg, Sweden"]
[Date "2024.09.08"]
[Round "8.5"]
[White "Grahn, Vidar"]
[Black "Al Waeli, Laith"]
[Result "1-0"]
[TimeControl "15 minutes + 5 seconds per move from move one (Round 1 - 4) / 90 minutes + 30 seconds per move from move one (Round 5 - 8)"]
[WhiteTitle "FM"]
[BlackTitle "FM"]
[WhiteFideId "1744780"]
[BlackFideId "4801059"]
[WhiteElo "2219"]
[BlackElo "2049"]

1. d4 {[%clk 01:30:56]} {[%emt 00:00:03]} Nf6 {[%clk 01:24:45]} {[%emt
00:06:15]} 2. c4 {[%clk 01:31:21]} {[%emt 00:00:06]} e6 {[%clk 01:25:11]}
{[%emt 00:00:03]} 3. g3 {[%clk 01:31:32]} {[%emt 00:00:20]} d5 {[%clk
01:24:56]} {[%emt 00:00:45]} 4. Bg2 {[%clk 01:30:39]} {[%emt 00:01:23]} Be7
{[%clk 01:23:12]} {[%emt 00:02:13]} 5. Nf3 {[%clk 01:31:06]} {[%emt 00:00:04]}
O-O {[%clk 01:23:35]} {[%emt 00:00:06]} 6. O-O {[%clk 01:31:32]} {[%emt
00:00:04]} dxc4 {[%clk 01:24:03]} {[%emt 00:00:02]} 7. Qc2 {[%clk 01:31:50]}
{[%emt 00:00:12]} a6 {[%clk 01:23:57]} {[%emt 00:00:36]} 8. a4 {[%clk
01:32:16]} {[%emt 00:00:05]} Bd7 {[%clk 01:23:53]} {[%emt 00:00:33]} 9. Qxc4
{[%clk 01:32:40]} {[%emt 00:00:06]} Bc6 {[%clk 01:24:21]} {[%emt 00:00:04]} 10.
Bg5 {[%clk 01:33:02]} {[%emt 00:00:07]} Nbd7 {[%clk 01:23:25]} {[%emt
00:01:25]} 11. Nc3 {[%clk 01:33:28]} {[%emt 00:00:05]} a5 {[%clk 01:16:02]}
{[%emt 00:07:53]} 12. Rfd1 {[%clk 01:31:17]} {[%emt 00:02:40]} Bxf3 {[%clk
01:14:18]} {[%emt 00:02:15]} 13. Bxf3 {[%clk 01:31:40]} {[%emt 00:00:06]} c6
{[%clk 01:14:47]} {[%emt 00:00:02]} 14. e4 {[%clk 01:28:55]} {[%emt 00:03:15]}
h6 {[%clk 01:10:15]} {[%emt 00:05:01]} 15. Be3 {[%clk 01:27:48]} {[%emt
00:01:36]} Bb4 {[%clk 00:54:21]} {[%emt 00:16:26]} 16. Rac1 {[%clk 01:26:01]}
{[%emt 00:02:16]} Rc8 {[%clk 00:49:09]} {[%emt 00:05:42]} 17. Qe2 {[%clk
01:23:19]} {[%emt 00:03:11]} Re8 {[%clk 00:46:22]} {[%emt 00:03:18]} 18. h4
{[%clk 01:17:13]} {[%emt 00:06:36]} Qe7 {[%clk 00:39:09]} {[%emt 00:07:43]} 19.
e5 {[%clk 01:09:17]} {[%emt 00:08:26]} Nd5 {[%clk 00:37:27]} {[%emt 00:02:13]}
20. Bd2 {[%clk 01:08:23]} {[%emt 00:01:23]} Qd8 {[%clk 00:31:19]} {[%emt
00:06:39]} 21. Nxd5 {[%clk 01:00:40]} {[%emt 00:08:12]} Bxd2 {[%clk 00:27:36]}
{[%emt 00:04:14]} 22. Qxd2 {[%clk 01:00:53]} {[%emt 00:00:16]} cxd5 {[%clk
00:24:02]} {[%emt 00:04:06]} 23. Rxc8 {[%clk 01:00:25]} {[%emt 00:00:57]} Qxc8
{[%clk 00:24:27]} {[%emt 00:00:04]} 24. Qxa5 {[%emt 00:05:47]} Qc4 {[%clk
00:19:44]} 25. Qb5 {[%clk 00:51:20]} {[%emt 00:09:31]} Qxb5 {[%clk 00:18:26]}
{[%emt 00:01:50]} 26. axb5 {[%clk 00:51:42]} {[%emt 00:00:08]} Nb6 {[%clk
00:18:54]} {[%emt 00:00:01]} 27. Ra1 {[%clk 00:47:05]} {[%emt 00:05:06]} Ra8
{[%clk 00:19:15]} {[%emt 00:00:11]} 28. Rxa8+ {[%clk 00:46:57]} {[%emt
00:00:36]} Nxa8 {[%clk 00:19:38]} {[%emt 00:00:08]} 29. Kf1 {[%clk 00:46:44]}
{[%emt 00:00:42]} b6 {[%clk 00:20:04]} {[%emt 00:00:04]} 30. Be2 {[%clk
00:46:42]} {[%emt 00:00:32]} Nc7 {[%clk 00:20:30]} {[%emt 00:00:04]} 31. h5
{[%clk 00:46:29]} {[%emt 00:00:43]} Kf8 {[%clk 00:20:35]} {[%emt 00:00:25]} 32.
f4 {[%clk 00:46:38]} {[%emt 00:00:21]} f5 {[%clk 00:17:37]} {[%emt 00:03:29]}
33. g4 {[%clk 00:46:03]} {[%emt 00:01:05]} Kf7 {[%clk 00:17:24]} {[%emt
00:00:43]} 34. Bd3 {[%clk 00:44:26]} {[%emt 00:02:06]} g6 {[%clk 00:16:51]}
{[%emt 00:01:03]} 35. hxg6+ {[%clk 00:43:45]} {[%emt 00:01:11]} Kxg6 {[%clk
00:17:17]} {[%emt 00:00:05]} 36. Kf2 {[%clk 00:44:07]} {[%emt 00:00:07]} h5
{[%clk 00:15:26]} {[%emt 00:02:21]} 37. g5 {[%clk 00:44:31]} {[%emt 00:00:06]}
Kh7 {[%clk 00:10:36]} {[%emt 00:05:21]} 38. Kg3 {[%clk 00:44:50]} {[%emt
00:00:08]} Kg6 {[%clk 00:10:22]} {[%emt 00:00:46]} 39. Kh4 {[%clk 00:45:13]}
{[%emt 00:00:07]} Na8 {[%clk 00:09:16]} {[%emt 00:01:38]} 40. Be2 {[%clk
00:45:34]} {[%emt 00:00:08]} Nc7 {[%clk 00:09:32]} {[%emt 00:00:14]} 41. b3
{[%clk 00:45:17]} {[%emt 00:00:47]} Kh7 {[%clk 00:08:32]} {[%emt 00:01:30]} 42.
Kxh5 {[%clk 00:45:38]} {[%emt 00:00:09]} Kg7 {[%clk 00:08:55]} {[%emt
00:00:06]} 43. g6 {[%clk 00:45:49]} {[%emt 00:00:20]} Ne8 {[%clk 00:08:49]}
{[%emt 00:00:36]} 44. Kg5 {[%clk 00:46:13]} {[%emt 00:00:07]} Nc7 {[%clk
00:09:13]} {[%emt 00:00:06]} 45. Bd3 {[%clk 00:46:25]} {[%emt 00:00:16]} Ne8
{[%clk 00:08:40]} {[%emt 00:01:04]} 46. Bxf5 {[%clk 00:46:24]} {[%emt
00:00:31]} exf5 {[%clk 00:08:24]} {[%emt 00:00:47]} 47. Kxf5 {[%clk 00:46:41]}
{[%emt 00:00:13]} Nc7 {[%clk 00:08:16]} {[%emt 00:00:38]} 48. e6 {[%clk
00:46:48]} {[%emt 00:00:22]} Nxb5 {[%clk 00:06:35]} {[%emt 00:02:11]} 49. e7
{[%clk 00:47:07]} {[%emt 00:00:12]} Nc7 {[%clk 00:06:04]} {[%emt 00:01:01]} 50.
b4 {[%clk 00:44:13]} {[%emt 00:03:23]} b5 {[%clk 00:05:48]} {[%emt 00:00:47]}
51. Kg5 {[%clk 00:42:27]} {[%emt 00:02:15]} Ne6+ {[%clk 00:04:58]} {[%emt
00:01:21]} 52. Kf5 {[%clk 00:40:30]} {[%emt 00:02:26]} Nc7 {[%clk 00:05:22]}
{[%emt 00:00:06]} 53. Ke5 {[%clk 00:39:46]} {[%emt 00:01:13]} Kxg6 {[%clk
00:04:35]} {[%emt 00:01:18]} 54. Kd6 {[%clk 00:39:41]} {[%emt 00:00:35]} Ne8+
{[%clk 00:04:40]} {[%emt 00:00:26]} 55. Kc6 {[%clk 00:37:57]} {[%emt 00:02:14]}
Kf7 {[%clk 00:04:51]} {[%emt 00:00:19]} 56. Kxb5 {[%clk 00:38:17]} {[%emt
00:00:09]} Kxe7 {[%clk 00:05:17]} {[%emt 00:00:04]} 57. Kc6 {[%clk 00:38:41]}
{[%emt 00:00:06]} Ke6 {[%clk 00:02:23]} {[%emt 00:03:25]} 58. b5 {[%clk
00:38:10]} {[%emt 00:01:01]} Nf6 {[%clk 00:01:01]} {[%emt 00:01:52]} 59. b6
{[%clk 00:36:31]} {[%emt 00:02:08]} Ke7 {[%clk 00:01:18]} {[%emt 00:00:13]} 60.
b7 {[%clk 00:35:49]} {[%emt 00:01:13]} Nd7 {[%clk 00:01:25]} {[%emt 00:00:24]}
61. Kc7 {[%clk 00:35:47]} {[%emt 00:00:31]} Ke6 {[%clk 00:00:51]} {[%emt
00:01:04]} 62. f5+ {[%clk 00:34:43]} {[%emt 00:01:33]} Ke7 {[%clk 00:01:15]}
{[%emt 00:00:06]} 63. f6 {[%clk 00:32:57]} {[%emt 00:02:16]} Ke8 {[%clk
00:01:08]} {[%emt 00:00:39]} 64. f7+ {[%clk 00:32:54]} {[%emt 00:00:32]} Ke7
{[%clk 00:00:49]} {[%emt 00:00:49]} 65. f8=Q {[%clk 00:33:13]} {[%emt
00:00:10]} Nxf8 {[%clk 00:00:35]} {[%emt 00:00:44]} 66. b8=Q {[%clk 00:33:30]}
{[%emt 00:00:14]} Ne6+ {[%clk 00:00:39]} {[%emt 00:00:25]} 67. Kc6 {[%clk
00:33:41]} {[%emt 00:00:18]} Nxd4+ {[%clk 00:00:50]} {[%emt 00:00:21]} 68. Kxd5
{[%clk 00:34:04]} {[%emt 00:00:06]} 1-0